[Event "Elitserien 2022/2023"]
[Site "Elite Hotel Marina Plaza, Kungstorget 6, Helsingborg, Sweden"]
[Date "2022.10.14"]
[Round "1.31"]
[White "Astrom, Goran"]
[Black "Rothman, Peter"]
[Result "1-0"]
[TimeControl "90 minutes for 40 moves + 30 minutes for the rest of the game + 30 seconds per move from move one."]
[WhiteTitle "FM"]
[WhiteFideId "1700847"]
[BlackFideId "1709402"]
[WhiteElo "2230"]
[BlackElo "2135"]

1. e4 {[%clk 01:30:52]} {[%emt 00:00:06]} c5 {[%clk 01:30:31]} {[%emt
00:00:30]} 2. Nf3 {[%clk 01:31:12]} {[%emt 00:00:10]} d6 {[%clk 01:30:38]}
{[%emt 00:00:23]} 3. d4 {[%clk 01:31:33]} {[%emt 00:00:09]} cxd4 {[%clk
01:30:53]} {[%emt 00:00:15]} 4. Nxd4 {[%clk 01:31:53]} {[%emt 00:00:09]} Nf6
{[%clk 01:30:59]} {[%emt 00:00:24]} 5. Nc3 {[%clk 01:32:12]} {[%emt 00:00:12]}
a6 {[%clk 01:30:51]} {[%emt 00:00:38]} 6. Be3 {[%clk 01:31:50]} {[%emt
00:00:51]} Ng4 {[%clk 01:28:25]} {[%emt 00:02:57]} 7. Bg5 {[%clk 01:29:38]}
{[%emt 00:02:42]} h6 {[%clk 01:27:49]} {[%emt 00:01:07]} 8. Bh4 {[%clk
01:30:01]} {[%emt 00:00:06]} g5 {[%clk 01:27:46]} {[%emt 00:00:33]} 9. Bg3
{[%clk 01:30:24]} {[%emt 00:00:07]} Bg7 {[%clk 01:27:37]} {[%emt 00:00:40]} 10.
h3 {[%clk 01:29:42]} {[%emt 00:01:11]} Ne5 {[%clk 01:26:48]} {[%emt 00:01:19]}
11. Nf5 {[%clk 01:27:46]} {[%emt 00:02:25]} Bxf5 {[%clk 01:25:35]} {[%emt
00:01:43]} 12. exf5 {[%clk 01:28:09]} {[%emt 00:00:08]} Nbc6 {[%clk 01:20:15]}
{[%emt 00:05:50]} 13. Nd5 {[%clk 01:27:31]} {[%emt 00:01:08]} Nd7 {[%clk
00:54:35]} {[%emt 00:26:08]} 14. c3 {[%clk 01:11:19]} {[%emt 00:16:45]} Nf6
{[%clk 00:54:07]} {[%emt 00:00:57]} 15. Bc4 {[%clk 01:03:01]} {[%emt 00:08:48]}
Nxd5 {[%clk 00:19:44]} {[%emt 00:34:54]} 16. Qxd5 {[%clk 01:00:26]} {[%emt
00:03:04]} Rf8 {[%clk 00:19:09]} {[%emt 00:01:06]} 17. O-O {[%clk 00:55:34]}
{[%emt 00:05:20]} Qc7 {[%clk 00:17:51]} {[%emt 00:01:49]} 18. Qd1 {[%clk
00:28:23]} {[%emt 00:27:40]} Be5 {[%clk 00:07:58]} {[%emt 00:10:23]} 19. Bxe5
{[%clk 00:28:04]} {[%emt 00:00:49]} Nxe5 {[%clk 00:07:24]} {[%emt 00:01:04]} 20.
Bd5 {[%clk 00:28:19]} {[%emt 00:00:16]} Nd7 {[%clk 00:05:31]} {[%emt 00:02:24]}
21. Qb3 {[%clk 00:26:07]} {[%emt 00:02:41]} Nb6 {[%clk 00:04:25]} {[%emt
00:01:36]} 22. Bf3 {[%clk 00:21:31]} {[%emt 00:05:05]} O-O-O {[%clk 00:04:45]}
{[%emt 00:00:10]} 23. Rfe1 {[%clk 00:21:21]} {[%emt 00:00:40]} Kb8 {[%clk
00:03:00]} {[%emt 00:02:16]} 24. Rad1 {[%clk 00:19:54]} {[%emt 00:01:58]} Ka7
{[%clk 00:03:24]} {[%emt 00:00:06]} 25. Rd4 {[%clk 00:17:51]} {[%emt 00:02:31]}
d5 {[%clk 00:03:30]} {[%emt 00:00:24]} 26. Bxd5 {[%clk 00:16:23]} {[%emt
00:01:58]} Nxd5 {[%clk 00:03:59]} {[%emt 00:00:02]} 27. Rxd5 {[%clk 00:16:40]}
{[%emt 00:00:13]} f6 {[%clk 00:03:22]} {[%emt 00:01:06]} 28. Red1 {[%clk
00:15:30]} {[%emt 00:01:41]} h5 {[%clk 00:03:50]} {[%emt 00:00:02]} 29. Qb4
{[%clk 00:15:01]} {[%emt 00:00:58]} Rxd5 {[%clk 00:02:53]} {[%emt 00:01:28]} 30.
Rxd5 {[%clk 00:15:24]} {[%emt 00:00:07]} Re8 {[%clk 00:03:04]} {[%emt
00:00:19]} 31. Qd4+ {[%clk 00:14:09]} {[%emt 00:01:45]} Qb6 {[%clk 00:03:32]}
{[%emt 00:00:02]} 32. c4 {[%clk 00:12:25]} {[%emt 00:02:14]} Qxd4 {[%clk
00:03:37]} {[%emt 00:00:25]} 33. Rxd4 {[%clk 00:12:48]} {[%emt 00:00:07]} Kb6
{[%clk 00:04:00]} {[%emt 00:00:07]} 34. Kf1 {[%clk 00:06:22]} {[%emt 00:06:55]}
Kc5 {[%clk 00:03:54]} {[%emt 00:00:37]} 35. Re4 {[%clk 00:06:35]} {[%emt
00:00:16]} Kd6 {[%clk 00:04:03]} {[%emt 00:00:22]} 36. Ke2 {[%clk 00:06:44]}
{[%emt 00:00:20]} Rc8 {[%clk 00:04:26]} {[%emt 00:00:07]} 37. Kd3 {[%clk
00:04:32]} {[%emt 00:02:42]} Rc5 {[%clk 00:03:29]} {[%emt 00:01:27]} 38. g4
{[%clk 00:03:37]} {[%emt 00:01:25]} hxg4 {[%clk 00:03:53]} {[%emt 00:00:06]} 39.
hxg4 {[%clk 00:03:51]} {[%emt 00:00:15]} Rc8 {[%clk 00:03:40]} {[%emt
00:00:43]} 40. b4 {[%clk 00:02:21]} {[%emt 00:02:01]} Rh8 {[%clk 00:04:00]}
{[%emt 00:00:10]} 41. c5+ {[%clk 00:01:13]} {[%emt 00:01:38]} Kd7 {[%clk
00:04:20]} {[%emt 00:00:10]} 42. f3 {[%clk 00:00:35]} {[%emt 00:01:08]} Rh1
{[%clk 00:04:13]} {[%emt 00:00:36]} 43. Kc3 {[%clk 00:28:31]} {[%emt 00:02:34]}
Rf1 {[%clk 00:32:04]} {[%emt 00:02:39]} 44. Re3 {[%clk 00:28:43]} {[%emt
00:00:18]} Rf2 {[%clk 00:22:14]} {[%emt 00:10:19]} 45. a3 {[%clk 00:28:04]}
{[%emt 00:01:10]} Kd8 {[%clk 00:19:32]} {[%emt 00:03:12]} 46. Kb3 {[%clk
00:26:14]} {[%emt 00:02:20]} Rd2 {[%clk 00:19:52]} {[%emt 00:00:10]} 47. Ka4
{[%clk 00:25:15]} {[%emt 00:01:29]} Rd7 {[%clk 00:20:01]} {[%emt 00:00:21]} 48.
Ka5 {[%clk 00:25:30]} {[%emt 00:00:15]} Kc7 {[%clk 00:15:12]} {[%emt 00:05:19]}
49. a4 {[%clk 00:20:52]} {[%emt 00:05:09]} Kc6 {[%clk 00:13:48]} {[%emt
00:01:55]} 50. Re6+ {[%clk 00:19:01]} {[%emt 00:02:19]} Kc7 {[%clk 00:12:17]}
{[%emt 00:02:02]} 51. b5 {[%clk 00:17:46]} {[%emt 00:01:45]} axb5 {[%clk
00:11:30]} {[%emt 00:01:18]} 52. axb5 {[%clk 00:18:08]} {[%emt 00:00:07]} Rd5
{[%clk 00:05:30]} {[%emt 00:06:28]} 53. Rxe7+ {[%clk 00:17:21]} {[%emt
00:01:18]} Kd8 {[%clk 00:05:59]} {[%emt 00:00:01]} 54. Rxb7 {[%clk 00:17:27]}
{[%emt 00:00:24]} Rxc5 {[%clk 00:06:16]} {[%emt 00:00:14]} 55. Rf7 {[%clk
00:17:34]} {[%emt 00:00:22]} Rc3 {[%clk 00:06:37]} {[%emt 00:00:10]} 56. Rxf6
{[%clk 00:17:39]} {[%emt 00:00:24]} 1-0

[Event "Elitserien 2022/2023"]
[Site "Elite Hotel Marina Plaza, Kungstorget 6, Helsingborg, Sweden"]
[Date "2022.10.14"]
[Round "1.33"]
[White "Livner, Anders"]
[Black "Pantzar, Milton"]
[Result "1-0"]
[TimeControl "90 minutes for 40 moves + 30 minutes for the rest of the game + 30 seconds per move from move one."]
[WhiteTitle "FM"]
[BlackTitle "IM"]
[WhiteFideId "1704150"]
[BlackFideId "1721003"]
[WhiteElo "2365"]
[BlackElo "2465"]

1. Nf3 {[%clk 01:29:00]} {[%emt 00:02:01]} Nf6 {[%clk 01:29:53]} {[%emt
00:01:06]} 2. c4 {[%clk 01:28:54]} {[%emt 00:00:36]} e6 {[%clk 01:30:02]}
{[%emt 00:00:21]} 3. g3 {[%clk 01:28:12]} {[%emt 00:01:12]} d5 {[%clk
01:30:06]} {[%emt 00:00:26]} 4. Bg2 {[%clk 01:28:30]} {[%emt 00:00:12]} Be7
{[%clk 01:30:08]} {[%emt 00:00:29]} 5. O-O {[%clk 01:28:37]} {[%emt 00:00:22]}
O-O {[%clk 01:30:25]} {[%emt 00:00:12]} 6. d4 {[%clk 01:28:51]} {[%emt
00:00:17]} c6 {[%clk 01:30:26]} {[%emt 00:00:30]} 7. Qc2 {[%clk 01:27:04]}
{[%emt 00:02:16]} b6 {[%clk 01:29:18]} {[%emt 00:01:38]} 8. Nbd2 {[%clk
01:25:57]} {[%emt 00:01:36]} c5 {[%clk 01:27:19]} {[%emt 00:02:31]} 9. dxc5
{[%clk 01:17:47]} {[%emt 00:08:40]} bxc5 {[%clk 01:21:31]} {[%emt 00:06:16]} 10.
b3 {[%clk 01:15:59]} {[%emt 00:02:19]} Nc6 {[%clk 01:18:38]} {[%emt 00:03:22]}
11. Bb2 {[%clk 01:15:14]} {[%emt 00:01:15]} Nb4 {[%clk 01:12:40]} {[%emt
00:06:29]} 12. Qb1 {[%clk 01:11:07]} {[%emt 00:04:36]} Rb8 {[%clk 01:06:15]}
{[%emt 00:06:56]} 13. Ne5 {[%clk 00:54:52]} {[%emt 00:16:45]} Bb7 {[%clk
01:01:16]} {[%emt 00:05:30]} 14. cxd5 {[%clk 00:52:45]} {[%emt 00:02:37]} exd5
{[%clk 00:59:47]} {[%emt 00:01:58]} 15. Nd3 {[%clk 00:44:19]} {[%emt 00:08:56]}
a5 {[%clk 00:47:36]} {[%emt 00:12:42]} 16. Rc1 {[%clk 00:39:40]} {[%emt
00:05:09]} Qb6 {[%clk 00:42:51]} {[%emt 00:05:14]} 17. Nf4 {[%clk 00:35:29]}
{[%emt 00:04:41]} Rbd8 {[%clk 00:35:03]} {[%emt 00:08:18]} 18. Re1 {[%clk
00:29:00]} {[%emt 00:06:58]} Qa7 {[%clk 00:17:23]} {[%emt 00:18:11]} 19. e3
{[%clk 00:14:33]} {[%emt 00:14:57]} Rfe8 {[%clk 00:15:13]} {[%emt 00:02:41]} 20.
Qd1 {[%clk 00:12:22]} {[%emt 00:02:41]} d4 {[%clk 00:08:45]} {[%emt 00:06:57]}
21. exd4 {[%clk 00:11:06]} {[%emt 00:01:46]} Bxg2 {[%clk 00:07:32]} {[%emt
00:01:43]} 22. Kxg2 {[%clk 00:11:26]} {[%emt 00:00:10]} cxd4 {[%clk 00:07:51]}
{[%emt 00:00:11]} 23. a3 {[%clk 00:08:31]} {[%emt 00:03:25]} Nbd5 {[%clk
00:08:16]} {[%emt 00:00:05]} 24. Nd3 {[%clk 00:08:22]} {[%emt 00:00:39]} Nc3
{[%clk 00:04:33]} {[%emt 00:04:13]} 25. Qf3 {[%clk 00:08:44]} {[%emt 00:00:07]}
Nfd5 {[%clk 00:04:37]} {[%emt 00:00:27]} 26. h4 {[%clk 00:07:24]} {[%emt
00:01:51]} Bf6 {[%clk 00:03:06]} {[%emt 00:02:00]} 27. Ne4 {[%clk 00:06:58]}
{[%emt 00:00:55]} Nxe4 {[%clk 00:02:51]} {[%emt 00:00:46]} 28. Rxe4 {[%clk
00:07:24]} {[%emt 00:00:04]} Rxe4 {[%clk 00:02:50]} {[%emt 00:00:32]} 29. Qxe4
{[%clk 00:07:51]} {[%emt 00:00:03]} Qb6 {[%clk 00:02:13]} {[%emt 00:01:07]} 30.
Re1 {[%clk 00:04:10]} {[%emt 00:04:11]} h6 {[%clk 00:02:17]} {[%emt 00:00:26]}
31. Nc1 {[%clk 00:04:21]} {[%emt 00:00:18]} Nc3 {[%clk 00:02:13]} {[%emt
00:00:34]} 32. Qd3 {[%clk 00:04:32]} {[%emt 00:00:18]} Qc6+ {[%clk 00:01:10]}
{[%emt 00:01:34]} 33. Kh2 {[%clk 00:04:52]} {[%emt 00:00:10]} Qd5 {[%clk
00:01:08]} {[%emt 00:00:32]} 34. Bxc3 {[%clk 00:04:20]} {[%emt 00:01:03]} dxc3
{[%clk 00:01:32]} {[%emt 00:00:06]} 35. Re8+ {[%clk 00:04:45]} {[%emt
00:00:05]} Rxe8 {[%clk 00:01:55]} {[%emt 00:00:08]} 36. Qxd5 {[%clk 00:05:11]}
{[%emt 00:00:03]} g6 {[%clk 00:01:54]} {[%emt 00:00:32]} 37. Qd3 {[%clk
00:03:10]} {[%emt 00:02:29]} Rd8 {[%clk 00:02:00]} {[%emt 00:00:25]} 38. Qf3
{[%clk 00:03:13]} {[%emt 00:00:26]} Kg7 {[%clk 00:02:29]} {[%emt 00:00:03]} 39.
Ne2 {[%clk 00:01:33]} {[%emt 00:02:09]} c2 {[%clk 00:02:37]} {[%emt 00:00:23]}
40. Kg2 {[%clk 00:00:50]} {[%emt 00:01:13]} Rd2 {[%clk 00:01:06]} {[%emt
00:02:00]} 41. Nc1 {[%clk 00:21:10]} {[%emt 00:10:10]} Rd1 {[%clk 00:11:51]}
{[%emt 00:19:45]} 42. Na2 {[%clk 00:15:03]} {[%emt 00:06:36]} Ra1 {[%clk
00:11:26]} {[%emt 00:00:55]} 43. Qc6 {[%clk 00:11:42]} {[%emt 00:03:51]} Rxa2
{[%clk 00:11:47]} {[%emt 00:00:10]} 44. Qc4 {[%clk 00:07:24]} {[%emt 00:04:47]}
h5 {[%clk 00:08:50]} {[%emt 00:03:29]} 45. Kh3 {[%clk 00:07:46]} {[%emt
00:00:07]} Rb2 {[%clk 00:07:47]} {[%emt 00:01:33]} 46. b4 {[%clk 00:07:17]}
{[%emt 00:00:59]} a4 {[%clk 00:07:37]} {[%emt 00:00:39]} 47. b5 {[%clk
00:07:29]} {[%emt 00:00:19]} Kg8 {[%clk 00:05:34]} {[%emt 00:02:33]} 48. b6
{[%clk 00:07:08]} {[%emt 00:00:51]} Bg7 {[%clk 00:04:20]} {[%emt 00:01:44]} 49.
f4 {[%clk 00:03:52]} {[%emt 00:03:46]} Rxb6 {[%clk 00:01:37]} {[%emt 00:03:13]}
50. Qxc2 {[%emt 00:00:02]} Rb3 {[%clk 00:01:59]} {[%emt 00:00:07]} 51. Qc8+
{[%clk 00:03:34]} {[%emt 00:01:17]} Bf8 {[%clk 00:01:51]} {[%emt 00:00:39]} 52.
f5 {[%clk 00:03:48]} {[%emt 00:00:16]} Rxa3 {[%clk 00:01:47]} {[%emt 00:00:34]}
53. Qe8 {[%clk 00:01:16]} {[%emt 00:03:01]} Kg7 {[%clk 00:01:03]} {[%emt
00:01:15]} 54. Qe5+ {[%clk 00:01:27]} {[%emt 00:00:17]} Kg8 {[%clk 00:01:15]}
{[%emt 00:00:19]} 55. fxg6 {[%clk 00:01:30]} {[%emt 00:00:27]} fxg6 {[%clk
00:01:40]} {[%emt 00:00:05]} 56. Qf6 {[%clk 00:01:56]} {[%emt 00:00:03]} Bg7
{[%clk 00:00:55]} {[%emt 00:01:16]} 57. Qxg6 {[%clk 00:02:21]} {[%emt
00:00:06]} Ra1 {[%clk 00:00:41]} {[%emt 00:00:43]} 58. Qe8+ {[%clk 00:02:36]}
{[%emt 00:00:15]} Bf8 {[%clk 00:00:37]} {[%emt 00:00:34]} 59. Qe6+ {[%clk
00:01:59]} {[%emt 00:01:06]} Kh7 {[%clk 00:00:54]} {[%emt 00:00:14]} 60. Qf5+
{[%clk 00:00:57]} {[%emt 00:01:31]} Kg8 {[%clk 00:01:08]} {[%emt 00:00:16]} 61.
Qe6+ {[%clk 00:00:53]} {[%emt 00:00:35]} Kh7 {[%clk 00:01:37]} {[%emt
00:00:02]} 62. Qe5 {[%clk 00:01:01]} {[%emt 00:00:20]} Bg7 {[%clk 00:01:44]}
{[%emt 00:00:24]} 63. Qxh5+ {[%clk 00:01:28]} {[%emt 00:00:03]} Kg8 {[%clk
00:02:10]} {[%emt 00:00:04]} 64. Qe8+ {[%clk 00:01:36]} {[%emt 00:00:22]} Kh7
{[%clk 00:02:36]} {[%emt 00:00:05]} 65. Qh5+ {[%clk 00:02:03]} {[%emt
00:00:03]} Kg8 {[%clk 00:03:02]} {[%emt 00:00:03]} 66. Qe8+ {[%clk 00:02:28]}
{[%emt 00:00:03]} Kh7 {[%clk 00:03:28]} {[%emt 00:00:06]} 67. h5 {[%clk
00:02:34]} {[%emt 00:00:24]} a3 {[%clk 00:02:59]} {[%emt 00:00:59]} 68. Qg6+
{[%clk 00:02:09]} {[%emt 00:00:55]} Kh8 {[%clk 00:03:24]} {[%emt 00:00:06]} 69.
Qe8+ {[%clk 00:02:36]} {[%emt 00:00:02]} Kh7 {[%clk 00:03:50]} {[%emt
00:00:04]} 70. Kg4 {[%clk 00:02:07]} {[%emt 00:00:58]} Bb2 {[%clk 00:03:42]}
{[%emt 00:00:38]} 71. Qe7+ {[%clk 00:01:51]} {[%emt 00:00:47]} Kh8 {[%clk
00:03:08]} {[%emt 00:01:05]} 72. Qe8+ {[%clk 00:01:03]} {[%emt 00:01:17]} Kg7
{[%clk 00:03:15]} {[%emt 00:00:22]} 73. Qd7+ {[%clk 00:01:14]} {[%emt
00:00:20]} Kf8 {[%clk 00:03:11]} {[%emt 00:00:34]} 74. h6 {[%clk 00:01:18]}
{[%emt 00:00:26]} Re1 {[%clk 00:01:06]} {[%emt 00:02:34]} 75. Kg5 {[%clk
00:00:43]} {[%emt 00:01:04]} Re7 {[%clk 00:00:43]} {[%emt 00:00:54]} 76. Qc8+
{[%clk 00:01:00]} {[%emt 00:00:13]} Kf7 {[%clk 00:00:58]} {[%emt 00:00:16]} 77.
Qf5+ {[%clk 00:01:03]} {[%emt 00:00:27]} Ke8 {[%clk 00:01:16]} {[%emt
00:00:12]} 78. Qc8+ {[%clk 00:00:45]} {[%emt 00:00:48]} Kf7 {[%clk 00:01:45]}
79. h7 {[%clk 00:00:55]} {[%emt 00:00:19]} Re5+ {[%clk 00:01:47]} {[%emt
00:00:29]} 80. Kg4 {[%clk 00:00:59]} {[%emt 00:00:24]} Re8 {[%clk 00:01:34]}
{[%emt 00:00:44]} 81. Qb7+ {[%clk 00:00:50]} {[%emt 00:00:38]} Kg6 {[%clk
00:01:30]} {[%emt 00:00:34]} 82. Qc6+ {[%clk 00:00:48]} {[%emt 00:00:31]} Kf7
{[%clk 00:01:59]} {[%emt 00:00:03]} 83. Qd5+ {[%clk 00:00:54]} {[%emt
00:00:23]} Kg7 {[%clk 00:01:31]} {[%emt 00:00:59]} 84. Qd7+ {[%clk 00:00:40]}
{[%emt 00:00:44]} Kf8 {[%clk 00:01:59]} {[%emt 00:00:03]} 85. Kf5 {[%clk
00:00:38]} {[%emt 00:00:31]} Re7 {[%clk 00:00:47]} {[%emt 00:01:42]} 86. Qd8+
{[%clk 00:00:58]} {[%emt 00:00:10]} Re8 {[%clk 00:01:13]} {[%emt 00:00:04]} 87.
Qd7 {[%clk 00:01:25]} {[%emt 00:00:03]} Re7 {[%clk 00:01:18]} {[%emt 00:00:26]}
88. Qc8+ {[%clk 00:01:32]} {[%emt 00:00:22]} Re8 {[%clk 00:01:43]} {[%emt
00:00:05]} 89. Qb7 {[%clk 00:00:57]} {[%emt 00:01:04]} Re5+ {[%clk 00:01:56]}
{[%emt 00:00:18]} 90. Kf4 {[%clk 00:01:12]} {[%emt 00:00:12]} Re7 {[%clk
00:01:31]} {[%emt 00:00:56]} 91. Qxb2 {[%clk 00:00:55]} {[%emt 00:00:49]} Rf7+
{[%clk 00:01:26]} {[%emt 00:00:35]} 92. Ke3 {[%clk 00:01:03]} {[%emt 00:00:21]}
Re7+ {[%clk 00:00:53]} {[%emt 00:01:03]} 93. Kf2 {[%clk 00:01:20]} {[%emt
00:00:14]} Rf7+ {[%clk 00:00:55]} {[%emt 00:00:28]} 94. Kg2 {[%clk 00:01:39]}
{[%emt 00:00:11]} 1-0

[Event "Elitserien 2022/2023"]
[Site "Elite Hotel Marina Plaza, Kungstorget 6, Helsingborg, Sweden"]
[Date "2022.10.14"]
[Round "1.34"]
[White "Thybo, Jesper Sondergaard"]
[Black "Ong, Kezli"]
[Result "1-0"]
[TimeControl "90 minutes for 40 moves + 30 minutes for the rest of the game + 30 seconds per move from move one."]
[WhiteTitle "GM"]
[WhiteFideId "1438832"]
[BlackFideId "1706500"]
[WhiteElo "2516"]
[BlackElo "2298"]

1. d4 {[%clk 01:30:52]} {[%emt 00:00:07]} Nf6 {[%clk 01:30:33]} {[%emt
00:00:27]} 2. Nf3 {[%clk 01:30:48]} {[%emt 00:00:34]} e6 {[%clk 01:30:16]}
{[%emt 00:00:48]} 3. g3 {[%clk 01:30:26]} {[%emt 00:00:51]} d5 {[%clk
01:29:43]} {[%emt 00:01:03]} 4. c4 {[%clk 01:30:17]} {[%emt 00:00:38]} Be7
{[%clk 01:29:18]} {[%emt 00:00:56]} 5. Bg2 {[%clk 01:30:17]} {[%emt 00:00:30]}
O-O {[%clk 01:29:16]} {[%emt 00:00:32]} 6. O-O {[%clk 01:30:20]} {[%emt
00:00:26]} dxc4 {[%clk 01:29:14]} {[%emt 00:00:33]} 7. Qc2 {[%clk 01:30:17]}
{[%emt 00:00:33]} a6 {[%clk 01:28:36]} {[%emt 00:01:08]} 8. a4 {[%clk
01:30:21]} {[%emt 00:00:25]} Bd7 {[%clk 01:28:15]} {[%emt 00:00:53]} 9. Qxc4
{[%clk 01:30:18]} {[%emt 00:00:32]} Bc6 {[%clk 01:27:49]} {[%emt 00:00:57]} 10.
Bg5 {[%clk 01:29:14]} {[%emt 00:01:31]} Bd5 {[%clk 01:26:10]} {[%emt 00:02:11]}
11. Qc2 {[%clk 01:27:15]} {[%emt 00:02:29]} Be4 {[%clk 01:24:54]} {[%emt
00:01:46]} 12. Qc1 {[%clk 01:27:01]} {[%emt 00:00:43]} h6 {[%clk 01:23:03]}
{[%emt 00:02:21]} 13. Bxf6 {[%clk 01:26:59]} {[%emt 00:00:33]} Bxf6 {[%clk
01:23:21]} {[%emt 00:00:12]} 14. Nbd2 {[%clk 01:26:52]} {[%emt 00:00:37]} Bxf3
{[%clk 01:21:53]} {[%emt 00:01:58]} 15. Nxf3 {[%clk 01:27:06]} {[%emt
00:00:16]} a5 {[%clk 01:15:14]} {[%emt 00:07:09]} 16. Rd1 {[%clk 01:19:16]}
{[%emt 00:08:19]} c6 {[%clk 01:11:33]} {[%emt 00:04:13]} 17. h4 {[%clk
01:14:58]} {[%emt 00:04:45]} Na6 {[%clk 01:06:45]} {[%emt 00:05:20]} 18. h5
{[%clk 01:08:07]} {[%emt 00:07:21]} Qb6 {[%clk 01:03:50]} {[%emt 00:03:25]} 19.
Qc4 {[%clk 01:00:12]} {[%emt 00:08:24]} Rfd8 {[%clk 00:57:15]} {[%emt
00:07:06]} 20. e3 {[%clk 00:57:32]} {[%emt 00:03:10]} Qb4 {[%clk 00:46:17]}
{[%emt 00:11:28]} 21. Nd2 {[%clk 00:50:40]} {[%emt 00:07:22]} e5 {[%clk
00:36:06]} {[%emt 00:10:42]} 22. d5 {[%clk 00:34:57]} {[%emt 00:16:12]} cxd5
{[%clk 00:17:42]} {[%emt 00:18:53]} 23. Bxd5 {[%clk 00:34:11]} {[%emt
00:01:17]} Rxd5 {[%clk 00:14:18]} {[%emt 00:03:55]} 24. Qxd5 {[%clk 00:34:33]}
{[%emt 00:00:07]} Rd8 {[%clk 00:14:32]} {[%emt 00:00:16]} 25. Qb5 {[%clk
00:31:35]} {[%emt 00:03:28]} Rxd2 {[%clk 00:14:39]} {[%emt 00:00:23]} 26. Rxd2
{[%clk 00:29:13]} {[%emt 00:02:53]} Qxd2 {[%clk 00:15:00]} {[%emt 00:00:09]} 27.
Qxb7 {[%clk 00:29:37]} {[%emt 00:00:05]} Nb4 {[%clk 00:10:32]} {[%emt
00:04:58]} 28. Qc8+ {[%clk 00:29:21]} {[%emt 00:00:46]} Kh7 {[%clk 00:05:07]}
{[%emt 00:05:55]} 29. Rc1 {[%clk 00:28:47]} {[%emt 00:01:02]} Qd3 {[%clk
00:03:51]} {[%emt 00:01:48]} 30. Qe8 {[%clk 00:18:39]} {[%emt 00:10:38]} Qf5
{[%clk 00:02:02]} {[%emt 00:02:19]} 31. Qxf7 {[%clk 00:09:17]} {[%emt
00:09:53]} Nd3 {[%clk 00:02:26]} {[%emt 00:00:05]} 32. Rc2 {[%clk 00:09:41]}
{[%emt 00:00:06]} e4 {[%clk 00:01:03]} {[%emt 00:01:54]} 33. Qg6+ {[%clk
00:03:17]} {[%emt 00:06:54]} Qxg6 {[%clk 00:01:30]} {[%emt 00:00:03]} 34. hxg6+
{[%clk 00:03:44]} {[%emt 00:00:03]} Kxg6 {[%clk 00:01:52]} {[%emt 00:00:08]} 35.
b3 {[%clk 00:04:11]} {[%emt 00:00:02]} Kf5 {[%clk 00:01:31]} {[%emt 00:00:52]}
36. Rc7 {[%clk 00:02:39]} {[%emt 00:02:02]} h5 {[%clk 00:01:16]} {[%emt
00:00:45]} 37. b4 {[%clk 00:01:27]} {[%emt 00:01:41]} axb4 {[%clk 00:00:40]}
{[%emt 00:01:06]} 38. a5 {[%clk 00:01:49]} {[%emt 00:00:08]} b3 {[%clk
00:00:32]} {[%emt 00:00:38]} 39. Rb7 {[%clk 00:02:05]} {[%emt 00:00:13]} b2
{[%clk 00:00:32]} {[%emt 00:00:31]} 40. Rb5+ {[%clk 00:01:57]} {[%emt
00:00:38]} Ke6 {[%clk 00:00:31]} {[%emt 00:00:31]} 41. a6 {[%clk 00:01:25]}
{[%emt 00:01:02]} Bc3 {[%clk 00:11:33]} {[%emt 00:19:28]} 42. Rxb2 {[%clk
00:30:52]} {[%emt 00:01:01]} Bxb2 {[%clk 00:11:02]} {[%emt 00:01:02]} 43. a7
{[%clk 00:31:14]} {[%emt 00:00:08]} Kf5 {[%clk 00:08:59]} {[%emt 00:02:32]} 44.
a8=Q {[%clk 00:31:34]} {[%emt 00:00:12]} Bf6 {[%clk 00:08:12]} {[%emt
00:01:16]} 45. Qc8+ {[%clk 00:29:28]} {[%emt 00:02:35]} Kg5 {[%clk 00:07:48]}
{[%emt 00:00:56]} 46. Qc6 {[%clk 00:29:27]} {[%emt 00:00:30]} Kf5 {[%clk
00:06:35]} {[%emt 00:01:43]} 47. Qd7+ {[%clk 00:29:11]} {[%emt 00:00:46]} 1-0